bitfinex/quotes_ETHUSD_20240713
["timestamp","ask_amount","ask_price","bid_price","bid_amount"]
[1720902823979,0.33045031,3169.6,3168.9,0.804]
[1720902824130,1.09327232,3169.0,3168.9,0.804]
[1720902824526,1.09327488,3169.0,3168.9,0.804]
[1720902826264,1.09327488,3169.0,3168.8,2.20902]
[1720902826462,1.09327488,3168.9,3168.7,3.2027]
[1720902826777,1.09327488,3168.8,3168.7,2.3987]
[1720902826944,1.09333983,3168.8,3168.7,2.3987]
[1720902827365,1.09333889,3168.8,3168.7,2.3987]
[1720902827566,1.09335017,3168.8,3168.7,2.3987]
[1720902827790,1.09335017,3168.8,3168.7,4.6078]
[1720902830801,1.09334851,3168.8,3168.7,2.3987]
[1720902831006,1.09334851,3168.8,3168.4,4.608]
[1720902831298,1.09334851,3168.7,3168.4,5.412]
[1720902831606,1.09334851,3169.0,3168.4,6.916142]
[1720902831807,1.09334851,3168.9,3168.4,5.412]
[1720902832119,1.09334851,3168.8,3168.4,5.412]
[1720902832318,1.09334851,3169.0,3168.4,5.412]
[1720902832510,1.09334851,3169.0,3168.6,0.804]
[1720902832684,1.09334851,3169.2,3168.6,0.804]
[1720902832887,1.09334249,3169.1,3168.6,0.804]
[1720902833186,1.09334249,3169.0,3168.6,0.804]
[1720902833410,1.09334249,3168.9,3168.6,0.804]
[1720902833610,1.09334249,3169.2,3168.6,0.804]
[1720902834085,2.3363,3169.3,3168.6,0.804]
[1720902834283,1.09334686,3169.2,3168.6,0.804]
[1720902834483,1.09334639,3169.1,3168.6,0.804]
[1720902834682,1.09334639,3169.0,3168.6,0.804]
[1720902834923,1.09334639,3169.2,3168.6,0.804]
[1720902835087,1.09334639,3169.1,3168.6,0.804]
[1720902835287,1.09334639,3169.0,3168.6,0.804]
[1720902835523,1.09334639,3169.2,3168.6,0.804]
[1720902835725,1.09334639,3169.1,3168.6,0.804]
[1720902835925,0.36632764,3169.2,3168.6,0.804]
[1720902836136,1.09335004,3169.1,3168.6,0.804]
[1720902836298,0.36632764,3169.2,3168.6,0.804]
[1720902836299,1.09335004,3169.0,3168.6,0.804]
[1720902836493,0.36632764,3169.2,3168.6,0.804]
[1720902836494,1.09335004,3169.1,3168.6,0.804]
[1720902836738,1.09335004,3169.0,3168.5,2.20924]
[1720902836943,1.09335004,3169.1,3168.5,2.20924]
[1720902837156,1.09337587,3168.9,3168.5,2.20924]
[1720902837437,1.09337587,3168.8,3168.5,2.20924]
[1720902837599,2.3363,3169.3,3168.5,2.20924]
[1720902837798,1.55886627,3169.2,3168.5,2.20924]
[1720902838138,1.09337053,3169.1,3168.5,2.20924]
[1720902838345,1.09337053,3169.0,3168.5,2.20924]
[1720902838628,1.09337053,3168.9,3168.5,2.20924]
[1720902838830,1.09337053,3168.8,3168.5,2.20924]
[1720902839009,2.3363,3169.3,3168.5,2.20924]
[1720902839010,1.09337053,3168.7,3168.5,2.20924]
[1720902839211,1.09337053,3168.6,3168.5,2.971371]
[1720902840823,1.09339892,3168.6,3168.5,2.971371]
[1720902841027,3.41399009,3169.2,3168.5,2.971371]
[1720902841230,1.09339969,3169.1,3168.5,2.20924]
[1720902841437,1.09339969,3169.0,3168.5,2.20924]
[1720902841613,1.09339969,3168.9,3168.5,2.20924]
[1720902841938,1.09339969,3168.8,3168.5,2.20924]
[1720902842145,1.09339969,3168.7,3168.5,2.20924]
[1720902842352,2.3205904,3169.2,3168.5,2.20924]
[1720902842353,1.09339969,3168.6,3168.5,2.20924]
[1720902842526,1.09339969,3168.6,3168.5,2.971371]
[1720902842711,1.09337527,3168.6,3168.5,2.971371]
[1720902843711,2.32185719,3169.2,3168.5,2.971371]
[1720902843915,1.09337473,3169.1,3168.5,2.20924]
[1720902844149,2.32185719,3169.2,3168.5,2.20924]
[1720902844150,1.09340817,3169.0,3168.5,2.20924]
[1720902844339,1.09340817,3168.9,3168.5,2.20924]
[1720902844542,1.09340817,3169.0,3168.5,2.20924]
[1720902844751,1.09340817,3168.9,3168.5,2.20924]
[1720902844936,1.09340817,3168.8,3168.5,2.20924]
[1720902845141,1.09340817,3168.7,3168.5,2.20924]
[1720902845342,1.09340817,3168.6,3168.5,2.20924]
[1720902845925,1.09340817,3168.6,3168.5,5.180611]
[1720902846178,1.09340817,3168.6,3168.5,7.502811]
[1720902846339,2.32192821,3169.4,3168.7,2.20904]
[1720902846544,1.09332291,3169.3,3168.7,3.01304]
[1720902846775,1.09332291,3169.2,3168.7,5.22208]
[1720902846939,2.66675031,3169.6,3168.8,2.20903]
[1720902847155,2.32181962,3169.4,3168.8,2.20903]
[1720902847349,1.09332261,3169.3,3168.8,2.20903]
[1720902847678,1.09332261,3169.2,3168.7,0.804]
[1720902847976,1.09332261,3169.1,3168.7,3.0131]
[1720902848166,1.09332261,3169.3,3168.7,3.0131]
[1720902848340,1.09332261,3169.2,3168.7,3.0131]
[1720902848540,1.09332261,3169.1,3168.7,3.0131]
[1720902848769,1.09332261,3169.0,3168.7,3.0131]
[1720902848971,1.09332261,3169.2,3168.7,3.0131]
[1720902849177,1.09332261,3169.1,3168.7,3.0131]
[1720902849385,1.09332261,3169.2,3168.7,3.0131]
[1720902849583,1.09332261,3169.1,3168.7,3.0131]
[1720902849757,1.09332261,3169.2,3168.7,3.0131]
[1720902850394,1.09331935,3169.1,3168.7,3.0131]
[1720902850542,1.09331935,3169.0,3168.7,3.0131]
[1720902850737,1.09331935,3168.9,3168.7,3.0131]
[1720902850942,1.09331935,3168.8,3168.7,3.0131]
[1720902852770,1.09331935,3168.8,3168.7,2.2091]
[1720902853608,1.09335836,3168.8,3168.7,2.2091]
[1720902854116,1.09335101,3168.8,3168.7,2.2091]
[1720902856865,1.09334809,3168.8,3168.7,2.2091]
[1720902857097,1.09333961,3168.8,3168.7,2.2091]
[1720902860397,1.09336358,3168.8,3168.7,2.2091]
[1720902863655,2.4956,3169.2,3168.3,2.20933]
[1720902863938,3.68152474,3169.1,3168.3,5.35043]
[1720902864137,1.09337084,3169.0,3168.3,5.35043]
[1720902864314,2.5881539,3169.1,3168.3,5.35043]
[1720902864315,1.09338442,3168.9,3168.3,5.35043]
[1720902864513,1.09338442,3168.8,3168.3,5.35043]
[1720902864737,1.09338442,3169.0,3168.3,5.35043]
[1720902864936,1.09338442,3168.9,3168.3,3.01333]
[1720902865154,1.09338442,3168.8,3168.2,7.42]
[1720902865348,1.09338442,3168.7,3168.1,0.804]
[1720902865525,2.3228188,3168.8,3168.1,0.804]
[1720902865526,1.09338442,3168.6,3168.1,0.804]
[1720902865723,2.3228188,3168.8,3168.1,0.804]
[1720902865724,1.09338442,3168.5,3168.1,0.804]
[1720902865928,2.86375038,3168.9,3168.1,0.804]
[1720902865929,3.41620322,3168.7,3168.1,0.804]
[1720902866131,1.43500474,3168.6,3168.1,0.804]
[1720902866327,1.09338442,3168.5,3168.1,0.804]
[1720902867283,1.09352891,3168.4,3168.1,0.804]
[1720902867481,1.09352891,3168.3,3168.1,0.804]
[1720902867771,1.09352891,3168.5,3168.1,0.804]
[1720902867977,1.09352891,3168.4,3168.1,0.804]
[1720902868277,2.4956,3168.6,3168.1,0.804]
[1720902868278,1.09352891,3168.3,3168.1,0.804]
[1720902868452,1.09352891,3168.5,3168.1,0.804]
[1720902870580,1.09358188,3168.4,3168.1,0.804]
[1720902870880,1.09358188,3168.3,3168.1,0.804]
[1720902871038,1.09358188,3168.2,3168.1,0.804]
[1720902872953,1.09358188,3168.2,3168.1,3.1849]
[1720902873155,1.09358188,3168.2,3168.1,8.364348]
[1720902873566,2.6608284,3169.3,3168.1,6.154828]
[1720902873885,3.41369885,3169.2,3168.5,0.804]
[1720902874052,2.6608284,3169.3,3168.5,0.804]
[1720902874253,3.41370083,3169.2,3168.5,0.804]
[1720902874460,1.09339151,3169.1,3168.5,0.804]
[1720902876376,2.32030932,3169.2,3168.5,0.804]
[1720902876576,1.59151529,3169.1,3168.5,0.804]
[1720902876779,1.09340152,3169.0,3168.5,0.804]
[1720902876951,0.49811377,3169.1,3168.5,0.804]
[1720902877141,1.09338538,3169.0,3168.5,0.804]
[1720902877342,1.09338538,3168.9,3168.5,0.804]
[1720902877583,1.09338538,3168.8,3168.5,3.01323]
[1720902877740,2.65077842,3169.3,3168.7,0.804]
[1720902877945,1.09334372,3169.2,3168.7,0.804]
[1720902878170,1.09334372,3169.1,3168.7,0.804]
[1720902878342,1.09334372,3169.2,3168.7,0.804]
[1720902878537,1.46775593,3169.2,3168.7,0.804]
[1720902878782,1.09334372,3169.1,3168.7,0.804]
[1720902880304,0.37441221,3169.2,3168.7,0.804]
[1720902880465,1.09339524,3169.0,3168.7,0.804]
[1720902880672,1.09339524,3168.9,3168.5,3.01323]
[1720902880872,1.09339524,3169.1,3168.5,3.01323]
[1720902883534,1.09339524,3169.0,3168.6,2.3809]
[1720902883699,0.3304284,3169.3,3168.6,2.3809]
[1720902883903,3.41381235,3169.2,3168.6,2.3809]
[1720902884112,1.09339526,3169.1,3168.6,2.3809]
[1720902884287,1.09338223,3169.0,3168.6,2.3809]
[1720902884484,1.09338223,3168.9,3168.6,2.3809]
[1720902884706,1.09338223,3169.1,3168.6,2.3809]
[1720902884928,1.09338223,3169.0,3168.6,2.3809]
[1720902885127,1.09338223,3169.1,3168.6,2.3809]
[1720902885306,1.09338223,3169.0,3168.6,2.3809]
[1720902885489,1.09338223,3168.9,3168.6,2.3809]
[1720902885815,1.09338223,3168.8,3168.6,2.3809]
[1720902886009,1.09338223,3169.1,3168.6,2.3809]
[1720902886323,1.09338223,3169.0,3168.6,2.3809]
[1720902886522,1.09338223,3169.1,3168.6,2.3809]
[1720902886827,1.09338223,3169.0,3168.6,2.3809]
[1720902887030,0.3304284,3169.3,3168.6,2.3809]
[1720902887195,1.09340629,3168.9,3168.6,2.3809]
[1720902887417,1.09340629,3168.8,3168.6,2.3809]
[1720902887616,1.09340629,3168.7,3168.6,2.3809]
[1720902890514,0.3304284,3169.3,3168.6,2.3809]
[1720902890714,3.4138088,3169.2,3168.6,2.3809]
[1720902890914,1.09340636,3169.1,3168.6,2.3809]
[1720902891117,1.09340636,3169.0,3168.6,2.3809]
[1720902891439,1.09340636,3168.9,3168.6,2.3809]
[1720902891751,2.32040244,3169.2,3168.6,2.3809]
[1720902891752,1.09340636,3168.8,3168.6,2.3809]
[1720902891952,1.09340636,3168.7,3168.6,2.3809]
[1720902893878,2.32053895,3169.2,3168.6,2.3809]
[1720902894015,1.39315011,3169.1,3168.6,2.3809]
[1720902894216,1.09340509,3169.0,3168.6,2.3809]
[1720902894431,1.09340459,3168.9,3168.6,2.3809]
[1720902894754,1.09340459,3168.8,3168.6,2.3809]
[1720902894966,1.09340459,3168.7,3168.6,2.3809]
[1720902895167,1.09340459,3169.1,3168.6,4.59007]
[1720902896168,0.67691124,3169.3,3168.6,4.59007]
[1720902896377,3.414048,3169.2,3168.6,4.59007]
[1720902896668,2.7297398,3169.2,3168.6,4.59007]
[1720902896829,1.09340396,3169.1,3168.6,4.59007]
[1720902897030,1.09340396,3169.0,3168.6,4.59007]
[1720902897230,1.09340396,3169.1,3168.6,4.59007]
[1720902897432,1.09340074,3169.0,3168.6,4.59007]
[1720902897635,1.09340074,3168.9,3168.6,4.59007]
[1720902897851,1.09340074,3168.8,3168.6,4.59007]
[1720902898050,1.09340074,3169.1,3168.6,4.59007]
[1720902898252,1.09340074,3169.0,3168.6,4.59007]
[1720902898488,1.09340074,3169.1,3168.6,4.59007]
[1720902898695,1.09340074,3169.0,3168.6,4.59007]
[1720902898848,1.09340074,3169.1,3168.6,4.59007]
[1720902899188,1.09340074,3169.0,3168.6,4.59007]
[1720902899344,1.09340074,3169.1,3168.6,4.59007]
[1720902899544,1.09340074,3169.0,3168.6,4.59007]
[1720902899747,1.09340074,3168.9,3168.6,4.59007]
[1720902899947,1.09340074,3169.1,3168.6,4.59007]
[1720902900187,1.09340074,3169.0,3168.6,4.59007]
[1720902900486,1.09340074,3168.9,3168.6,4.59007]
[1720902900682,0.67691124,3169.3,3168.6,4.59007]
[1720902900978,2.32110843,3169.1,3168.6,4.59007]
[1720902901283,1.09340193,3169.0,3168.6,4.59007]
[1720902901482,1.09340193,3168.9,3168.3,3.01335]
[1720902901680,1.09340193,3168.8,3168.3,5.32665]
[1720902901907,1.09340193,3168.7,3168.3,5.32665]
[1720902902057,2.32110843,3169.0,3168.3,5.32665]
[1720902902058,1.09340193,3168.6,3168.3,5.32665]
[1720902902258,1.09340193,3168.5,3168.3,5.32665]
[1720902902451,1.09340193,3168.9,3168.3,5.32665]
[1720902902652,1.09340193,3168.8,3168.3,5.32665]
[1720902902989,1.09340193,3168.7,3168.3,5.32665]
[1720902903406,2.32110843,3169.0,3168.3,5.32665]
[1720902903407,1.09350168,3168.6,3168.3,5.32665]
[1720902903551,1.09350168,3168.5,3168.3,5.32665]
[1720902903751,1.09350184,3168.4,3168.3,5.32665]
[1720902905557,1.09350184,3168.4,3168.1,10.4335]
[1720902905881,1.09350184,3168.3,3168.1,3.0135]
[1720902906055,1.09356658,3168.2,3168.1,3.0135]
[1720902906499,2.4262,3168.9,3168.1,3.0135]
[1720902906797,3.41442704,3168.8,3168.1,3.0135]
[1720902907011,1.09356693,3168.7,3168.1,3.0135]
[1720902907157,1.09356693,3168.6,3168.1,3.0135]
[1720902907356,1.09356693,3168.5,3168.1,3.0135]
[1720902907593,1.09356693,3168.4,3168.1,3.0135]
[1720902907756,1.09356693,3168.3,3168.1,3.0135]
[1720902907955,1.09356693,3168.2,3168.1,3.0135]
[1720902909900,2.32089195,3168.8,3168.1,3.0135]
[1720902910084,1.09355369,3168.2,3168.1,3.0135]
[1720902910399,1.09355369,3168.2,3168.1,2.3133]
[1720902910555,1.09355369,3168.2,3168.1,3.1173]
[1720902913203,2.4262,3168.8,3168.1,3.1173]
[1720902913392,1.09355569,3168.7,3168.1,3.1173]
[1720902913695,1.09356489,3168.6,3168.1,3.1173]
[1720902913901,1.09356489,3168.5,3167.9,3.0825]
[1720902914104,1.09356489,3168.6,3167.9,3.0825]
[1720902915998,1.09357566,3168.5,3168.1,0.804]
[1720902916201,1.09357566,3168.4,3168.1,0.804]
[1720902916501,3.54451734,3169.1,3168.2,2.2785]
[1720902916502,2.4415,3169.1,3168.2,2.2785]
[1720902916805,2.32009582,3168.9,3168.3,0.804]
[1720902916991,1.09352827,3168.8,3168.3,0.804]
[1720902917193,1.09352827,3168.7,3168.3,0.804]
[1720902917388,1.09352827,3168.6,3168.3,0.804]
[1720902917705,1.09352827,3168.5,3168.3,0.804]
[1720902917908,1.09352827,3168.4,3168.3,0.804]
[1720902919090,1.09352827,3168.4,3168.2,4.48795]
[1720902919298,1.09352827,3168.3,3168.2,4.48795]
[1720902919977,1.09352607,3168.3,3168.2,4.48795]
[1720902921306,1.09352607,3168.3,3168.2,2.2785]
[1720902923499,1.09352607,3168.3,3168.1,3.01351]
[1720902923897,1.09354151,3168.2,3168.1,3.01351]
[1720902924211,1.09354151,3168.2,3168.1,3.763674]
[1720902925273,1.09354151,3168.2,3168.1,3.01351]
[1720902926706,1.09352089,3168.2,3168.1,3.01351]
[1720902927527,1.09352089,3168.2,3168.1,2.20951]
[1720902928402,1.09352089,3168.2,3168.1,3.01351]
[1720902930127,4.7619254,3168.9,3168.2,2.20943]
[1720902930331,1.09347023,3168.8,3168.2,2.20943]
[1720902930544,1.09347023,3168.7,3168.3,2.2785]
[1720902930732,1.09347023,3168.8,3168.3,2.2785]
[1720902931034,0.47619254,3168.9,3168.3,2.2785]
[1720902931035,1.09347023,3168.7,3168.3,2.2785]
[1720902931330,1.09347023,3168.6,3168.3,4.48787]
[1720902931503,1.09347023,3168.8,3168.3,8.030367]
[1720902931708,1.09347023,3168.7,3168.4,2.2785]
[1720902931891,2.3204254,3169.0,3168.6,2.2785]
[1720902932099,3.41390622,3168.9,3168.4,2.2785]
[1720902932308,1.09348082,3168.8,3168.4,2.2785]
[1720902932520,1.09348082,3168.7,3168.4,2.2785]
[1720902932715,1.09348082,3168.6,3168.4,2.2785]
[1720902933044,1.09348082,3168.5,3168.4,2.2785]
[1720902933248,3.92241124,3169.3,3168.4,2.2785]
[1720902933406,1.09346441,3168.5,3168.4,2.2785]
[1720902933745,1.09346136,3168.5,3168.4,4.48781]
[1720902935957,3.5759284,3169.3,3168.5,2.20924]
[1720902936249,3.41458027,3169.2,3168.5,2.20924]
[1720902936456,3.41458027,3169.1,3168.5,2.20924]
[1720902936643,1.09340241,3169.0,3168.5,2.20924]
[1720902936812,1.09339927,3168.9,3168.5,2.20924]
[1720902937157,1.09339927,3168.8,3168.5,2.20924]
[1720902937456,1.09339927,3168.7,3168.5,2.20924]
[1720902937621,1.09339927,3169.0,3168.5,2.20924]
[1720902938857,1.09339927,3169.1,3168.5,2.20924]
[1720902939151,1.09339927,3169.0,3168.5,2.20924]
[1720902939360,1.09339927,3168.9,3168.5,2.20924]
[1720902939651,1.09339927,3168.8,3168.5,2.20924]
[1720902939825,1.09339927,3169.0,3168.5,2.20924]
[1720902940035,1.09339883,3168.9,3168.5,2.20924]
[1720902940234,1.09339883,3168.8,3168.5,2.20924]
[1720902940441,1.09339883,3168.7,3168.5,2.20924]
[1720902940642,1.09339883,3168.6,3168.5,2.20924]
[1720902942779,1.09339883,3168.6,3168.5,5.45424]
[1720902942984,1.09339883,3168.6,3168.5,6.220595]
[1720902943341,2.32120358,3169.2,3168.6,4.65016]
[1720902943565,1.09339305,3169.1,3168.6,4.65016]
[1720902943771,2.32120358,3169.2,3168.6,4.65016]
[1720902943934,1.09339314,3169.1,3168.6,4.65016]
[1720902944143,1.09339314,3169.0,3168.6,4.65016]
[1720902944438,1.09339314,3168.9,3168.6,4.65016]
[1720902944653,1.09339314,3168.8,3168.6,4.65016]
[1720902944939,1.09339314,3168.7,3168.6,4.65016]
[1720902945380,1.09339314,3169.1,3168.6,4.65016]
[1720902945678,1.09339314,3169.0,3168.6,4.65016]
[1720902945863,2.7396284,3169.3,3168.6,4.65016]
[1720902945864,3.41459672,3169.1,3168.6,4.65016]
[1720902946066,1.09339865,3169.0,3168.6,4.65016]
[1720902946388,1.09339865,3168.9,3168.6,4.65016]
[1720902946542,1.09340103,3168.8,3168.6,4.65016]
[1720902946738,1.09340103,3168.7,3168.6,4.65016]
[1720902946935,1.09340103,3168.7,3168.6,5.416507]
[1720902947144,1.09340103,3168.7,3168.6,7.625677]
[1720902947867,2.32178729,3169.9,3169.3,2.441]
[1720902948082,1.09313629,3169.8,3169.3,2.441]
[1720902948285,1.09313629,3169.7,3169.3,2.441]
[1720902948590,1.09313629,3169.6,3169.4,0.804]
[1720902948758,0.33048104,3170.0,3169.5,2.20854]
[1720902948960,1.09305105,3169.9,3169.6,2.20846]
[1720902949163,1.09305105,3169.8,3169.6,2.20846]
[1720902949378,1.09305105,3169.7,3169.6,3.01246]
[1720902949542,1.09305105,3169.7,3169.6,5.45346]
[1720902949742,1.09295904,3169.7,3169.6,5.45346]
[1720902953147,0.33048104,3170.0,3169.7,2.20838]
[1720902953348,1.09293538,3169.9,3169.8,0.804]
[1720902953563,1.09293433,3169.9,3169.8,0.804]
[1720902953990,1.09293433,3169.9,3169.8,3.01234]
[1720902955357,0.33048679,3170.5,3169.8,3.778521]
[1720902955558,1.09286745,3170.4,3170.1,0.804]
[1720902955894,1.09286745,3170.3,3170.2,2.20805]
[1720902956384,2.3621,3170.9,3170.2,2.20805]
[1720902956585,2.3621,3170.9,3170.1,3.1991]
[1720902956791,2.69255832,3170.9,3170.1,5.40722]
[1720902957085,1.44249214,3170.8,3170.1,5.40722]
[1720902959835,0.34965583,3170.8,3170.1,5.40722]
[1720902960192,1.09283174,3170.7,3170.1,5.40722]
[1720902961845,1.09283174,3170.7,3170.1,3.1991]
[1720902962136,2.3621,3170.6,3169.6,2.20845]
[1720902962335,0.804,3170.3,3169.2,2.2087]
[1720902962552,2.3621,3170.4,3169.0,3.01288]
[1720902962750,2.3621,3169.9,3169.1,2.20881]
[1720902963063,1.0931736,3169.8,3169.1,2.20881]
[1720902963219,1.0931736,3169.7,3168.7,2.20905]
[1720902963416,0.99371736,3169.6,3168.7,2.20905]
[1720902963614,1.0931736,3169.5,3168.9,2.20895]
[1720902964136,0.18971736,3169.6,3168.9,2.20895]
[1720902964453,1.09322994,3169.5,3168.9,2.20895]
[1720902964655,1.09322994,3169.4,3168.9,2.20895]
[1720902964857,1.09322994,3169.7,3168.9,2.20895]
[1720902965164,1.09322994,3169.6,3168.9,2.20895]
[1720902965359,1.09322994,3169.7,3168.9,2.20895]
[1720902965662,1.28295293,3169.6,3168.9,2.20895]
[1720902965846,1.09322994,3169.5,3168.9,2.20895]
[1720902966018,1.09322994,3169.4,3169.0,0.804]
[1720902966216,1.09322994,3169.3,3169.0,0.804]
[1720902966456,1.09322994,3169.5,3169.0,0.804]
[1720902966658,1.09322994,3169.4,3169.0,0.804]
[1720902966839,1.09322994,3169.5,3169.0,0.804]
[1720902967027,1.09322994,3169.4,3169.0,0.804]
[1720902967367,1.09322994,3169.3,3169.0,0.804]
[1720902967542,1.09322994,3169.5,3169.0,0.804]
[1720902967918,0.18972299,3169.6,3169.0,0.804]
[1720902968118,1.09322746,3169.5,3169.0,0.804]
[1720902968368,0.804,3169.8,3169.0,0.804]
[1720902968547,1.09323216,3169.4,3169.0,0.804]
[1720902968865,1.09323216,3169.3,3169.0,0.804]
[1720902969018,1.09323216,3169.2,3169.0,0.804]
[1720902969219,1.09323216,3169.1,3169.0,0.804]
[1720902969432,1.09320153,3169.1,3169.0,0.804]
[1720902970117,1.09320153,3169.1,3169.0,3.01289]
[1720902970539,2.3621,3169.9,3169.0,3.01289]
[1720902970729,1.40980498,3169.8,3169.0,3.01289]
[1720902970932,1.09319498,3169.7,3169.0,3.01289]
[1720902971158,1.09319498,3169.6,3169.0,3.01289]
[1720902971466,0.31661,3169.8,3169.0,3.01289]
[1720902971763,1.09319258,3169.7,3169.0,2.20889]
[1720902972060,1.09319258,3169.6,3169.0,2.20889]
[1720902972362,1.09319258,3169.5,3169.0,2.20889]
[1720902974520,1.09319258,3169.4,3169.0,2.20889]
[1720902974739,1.09319258,3169.7,3169.0,2.20889]
[1720902974981,1.09320292,3169.6,3169.0,2.20889]
[1720902975119,1.09320292,3169.5,3169.0,2.20889]
[1720902975463,1.09320292,3169.4,3169.0,2.20889]
[1720902975756,1.09320292,3169.3,3169.0,3.01289]
[1720902975959,1.09320292,3169.7,3169.0,3.01289]
[1720902976171,1.09320292,3169.6,3169.0,3.01289]
[1720902976376,1.09320292,3169.5,3169.0,3.01289]
[1720902976684,1.09320292,3169.4,3169.0,3.01289]
[1720902976983,1.09320292,3169.3,3169.0,3.01289]
[1720902977175,1.09320292,3169.2,3169.0,3.01289]
[1720902977376,0.30091957,3169.7,3169.0,3.01289]
[1720902977377,1.09320292,3169.1,3169.0,2.20889]
[1720902978080,1.09320292,3169.1,3169.0,7.47368]
[1720902978283,1.09320292,3169.1,3169.0,8.221048]
[1720902978483,0.3304857,3169.9,3169.4,2.20855]
[1720902978673,1.09312019,3169.8,3169.4,2.20855]
[1720902978844,1.09312019,3169.7,3169.4,2.20855]
[1720902979045,1.09312019,3169.7,3169.2,2.2087]
[1720902979046,1.09312019,3169.6,3169.2,2.2087]
[1720902979262,1.09312019,3169.5,3169.2,2.2087]
[1720902979482,1.09312019,3169.8,3169.3,2.20862]
[1720902979779,1.09312019,3169.7,3169.3,2.20862]
[1720902979981,1.09312019,3169.8,3169.3,2.20862]
[1720902980283,1.09312019,3169.7,3169.3,2.20862]
[1720902980582,1.09312019,3169.6,3169.3,2.20862]
[1720902980788,1.09312019,3169.8,3169.3,2.20862]
[1720902981081,1.31588078,3169.8,3169.3,2.20862]
[1720902981287,1.09316962,3169.7,3169.3,2.20862]
[1720902981481,1.09316962,3169.6,3169.3,2.20862]
[1720902981778,1.09317722,3169.5,3169.3,2.20862]
[1720902981990,1.09317726,3169.7,3169.3,2.20862]
[1720902982173,1.25781962,3169.7,3169.3,2.20862]
[1720902982367,1.09317726,3169.6,3169.3,2.20862]
[1720902982572,1.09317726,3169.5,3169.3,2.20862]
[1720902982759,1.09317726,3169.4,3169.3,2.20862]
[1720902982962,1.09317726,3169.6,3169.3,2.20862]
[1720902983174,1.09317726,3169.5,3169.3,2.20862]
[1720902983349,1.09317726,3169.4,3169.3,2.20862]
[1720902985095,1.09316883,3169.4,3169.3,2.20862]
[1720902988379,0.16464236,3169.7,3169.1,0.804]
[1720902988575,1.09316419,3169.6,3169.0,9.6719]
[1720902988789,1.09316419,3169.5,3169.0,10.4759]
[1720902988995,1.09320499,3169.4,3169.0,3.0559]
[1720902989308,1.09320499,3169.3,3169.0,3.0559]
[1720902989475,1.09320499,3169.6,3169.0,3.0559]
[1720902989679,1.09320499,3169.5,3169.0,3.0559]
[1720902989880,1.09320499,3169.4,3169.0,3.0559]
[1720902990064,1.09320499,3169.3,3169.0,3.0559]
[1720902990273,1.09320499,3169.6,3169.0,3.0559]
[1720902990469,1.09320499,3169.5,3169.0,3.0559]
[1720902990671,1.09320499,3169.4,3169.0,5.26476]
[1720902990897,1.09320499,3169.3,3169.0,5.26476]
[1720902991092,1.09320499,3169.2,3169.0,5.26476]
[1720902991272,1.09318172,3169.1,3169.0,5.26476]
[1720902991782,2.6156857,3169.9,3169.0,5.26476]
[1720902991985,1.35474101,3169.8,3169.0,5.26476]
[1720902992321,1.09317244,3169.7,3169.0,5.26476]
[1720902992517,1.09317244,3169.6,3169.0,5.26476]
[1720902992719,1.09317244,3169.5,3169.0,7.47359]
[1720902993011,1.09317244,3169.4,3169.1,2.20882]
[1720902993303,1.09317244,3169.3,3169.1,2.20882]
[1720902993512,1.09317244,3169.7,3169.1,2.20882]
[1720902993669,1.09317244,3169.6,3169.1,2.20882]
[1720902993875,1.09317244,3169.5,3169.1,2.20882]
[1720902994085,1.09317244,3169.4,3169.1,2.20882]
[1720902994290,1.09317244,3169.3,3169.1,2.20882]
[1720902994598,1.09317244,3169.2,3169.1,2.20882]
[1720902995171,1.09316896,3169.2,3169.1,2.20882]
[1720902998723,1.09316481,3169.2,3169.1,2.20882]
[1720902998941,0.26156857,3169.8,3169.1,2.20882]
[1720902999143,1.38089021,3169.7,3169.1,2.20882]
[1720902999491,1.09316478,3169.6,3169.1,2.20882]
[1720902999813,1.09316478,3169.5,3169.1,2.20882]
[1720903000014,1.09316478,3169.4,3169.1,2.20882]
[1720903000191,1.09316478,3169.3,3169.1,2.20882]
[1720903000391,1.09316478,3169.6,3169.1,2.20882]
[1720903000617,1.09316478,3169.5,3169.1,2.20882]
[1720903000817,1.09316478,3169.4,3169.1,2.20882]
[1720903001003,1.09316478,3169.6,3169.1,2.20882]
[1720903001202,1.09316478,3169.5,3169.1,2.20882]
[1720903001407,1.09316897,3169.4,3169.1,2.20882]
[1720903001610,1.09316897,3169.3,3169.1,2.20882]
[1720903001809,1.09316932,3169.2,3169.1,2.20882]
[1720903003937,1.0931692,3169.2,3169.1,2.20882]
[1720903005232,2.6156857,3169.9,3169.1,2.20882]
[1720903005437,2.32120154,3169.6,3169.1,2.20882]
[1720903005593,1.0931691,3169.5,3169.1,2.20882]
[1720903005797,1.0931691,3169.4,3169.1,2.20882]
[1720903005993,1.0931691,3169.3,3169.1,2.20882]
[1720903006233,1.0931691,3169.2,3169.1,2.20882]
[1720903008708,1.09316344,3169.2,3169.1,2.20882]
[1720903009148,2.32335425,3169.6,3169.2,2.20875]
[1720903009357,1.09316255,3169.5,3169.2,2.20875]
[1720903009672,1.09316255,3169.4,3169.2,2.20875]
[1720903009872,1.09316255,3169.3,3169.2,2.20875]
[1720903010360,1.09316255,3169.5,3169.2,2.20875]
[1720903010526,1.09316255,3169.4,3169.2,2.20875]
[1720903010709,1.09316255,3169.3,3169.2,2.20875]
[1720903010912,1.09316255,3169.5,3169.2,2.20875]
[1720903011113,1.09316255,3169.4,3169.2,2.20875]
[1720903011315,2.32335425,3169.6,3169.3,2.20868]
[1720903011617,1.09316684,3169.5,3169.3,2.20868]
[1720903012014,1.09316985,3169.4,3169.3,2.20868]
[1720903015337,1.09315373,3169.4,3169.3,2.20868]
[1720903017381,1.09315373,3169.4,3169.1,2.20877]
[1720903017590,1.09315373,3169.3,3169.1,2.20877]
[1720903017787,1.09315373,3169.4,3169.2,2.20874]
[1720903017961,1.09315373,3169.3,3169.2,2.20874]
[1720903018661,2.32423537,3169.5,3169.2,2.20874]
[1720903018856,1.0931882,3169.4,3169.2,2.20874]
[1720903019047,1.09318143,3169.3,3169.2,2.20874]
[1720903021164,1.0931987,3169.3,3169.2,2.20874]